fUST/lending_fUST_20250709
["ID","MTS","AMOUNT","RATE_DAILY","PERIOD"]
[370529209,1752055849236,-460.0,0.0002,2]
[370529211,1752055849245,-460.0,0.0002,2]
[370529213,1752055849255,-381.96,0.0002,2]
[370529215,1752055849264,-460.0,0.0002,2]
[370529217,1752055849273,-460.0,0.0002,2]
[370529219,1752055849283,-460.0,0.0002,2]
[370529221,1752055849291,-460.0,0.0002,2]
[370529223,1752055849301,-460.0,0.0002,2]
[370529225,1752055849310,-460.0,0.0002,2]
[370529227,1752055849320,-460.61,0.0002,2]
[370529229,1752055849330,-488.74,0.0002,2]
[370529231,1752055849339,-460.0,0.0002,2]
[370529233,1752055849349,-460.0,0.0002,2]
[370529236,1752055849359,-546.26,0.0002,2]
[370529238,1752055849368,-381.04,0.0002,2]
[370529239,1752055849378,-460.0,0.0002,2]
[370529241,1752055849387,-460.0,0.0002,2]
[370529244,1752055849398,-460.0,0.0002,2]
[370529246,1752055849408,-460.0,0.0002,2]
[370529248,1752055849417,-460.0,0.0002,2]
[370529250,1752055849427,-460.0,0.0002,2]
[370529252,1752055849437,-460.0,0.0002,2]
[370529254,1752055849447,-460.0,0.0002,2]
[370529256,1752055849457,-460.0,0.0002,2]
[370529258,1752055849467,-460.0,0.0002,2]
[370529260,1752055849476,-460.0,0.0002,2]
[370529262,1752055849486,-460.0,0.0002,2]
[370529264,1752055849495,-460.0,0.0002,2]
[370529266,1752055849504,-460.0,0.0002,2]
[370529267,1752055849514,-460.0,0.0002,2]
[370529269,1752055849524,-460.0,0.0002,2]
[370529271,1752055849534,-460.0,0.0002,2]
[370529273,1752055849542,-460.0,0.0002,2]
[370529275,1752055849552,-460.0,0.0002,2]
[370529277,1752055849561,-460.0,0.0002,2]
[370529279,1752055849571,-460.0,0.0002,2]
[370529281,1752055849581,-216.58230466,0.0002,2]
[370529283,1752055849590,-1243.87,0.0002,2]
[370529285,1752055849600,-460.0,0.0002,2]
[370529287,1752055849609,-460.0,0.0002,2]
[370529289,1752055849619,-460.0,0.0002,2]
[370529291,1752055849628,-460.0,0.0002,2]
[370529293,1752055849637,-460.0,0.0002,2]
[370529295,1752055849646,-460.0,0.0002,2]
[370529297,1752055849655,-977.13,0.0002,2]
[370529299,1752055849664,-460.0,0.0002,2]
[370529301,1752055849674,-319.55,0.0002,2]
[370529303,1752055849683,-460.0,0.0002,2]
[370529305,1752055849692,-460.0,0.0002,2]
[370529307,1752055849701,-460.0,0.0002,2]
[370529309,1752055849710,-519.22,0.0002,2]
[370529311,1752055849720,-2676.37,0.0002,2]
[370529313,1752055849730,-1280.58,0.0002,2]
[370529315,1752055849739,-1139.85,0.0002,2]
[370529317,1752055849748,-460.0,0.0002,2]
[370529319,1752055849763,-460.0,0.0002,2]
[370529320,1752055849772,-460.0,0.0002,2]
[370529321,1752055849780,-786.89,0.0002,2]
[370529322,1752055849790,-460.0,0.0002,2]
[370529323,1752055849799,-460.0,0.0002,2]
[370529324,1752055849808,-460.0,0.0002,2]
[370529325,1752055849817,-922.26,0.0002,2]
[370529326,1752055849826,-460.0,0.0002,2]
[370529327,1752055849835,-460.0,0.0002,2]
[370529328,1752055849845,-460.0,0.0002,2]
[370529329,1752055849854,-460.0,0.0002,2]
[370529330,1752055849863,-460.0,0.0002,2]
[370529331,1752055849872,-460.0,0.0002,2]
[370529332,1752055849881,-460.0,0.0002,2]
[370529334,1752055849891,-1364.13,0.0002,2]
[370529336,1752055849900,-460.0,0.0002,2]
[370529337,1752055849909,-460.0,0.0002,2]
[370529339,1752055849919,-460.0,0.0002,2]
[370529341,1752055849929,-460.0,0.0002,2]
[370529343,1752055849939,-1419.92,0.0002,2]
[370529345,1752055849948,-695.48,0.0002,2]
[370529347,1752055849958,-460.0,0.0002,2]
[370529349,1752055849967,-583.52,0.0002,2]
[370529351,1752055849977,-460.0,0.0002,2]
[370529353,1752055849986,-330.8,0.0002,2]
[370529355,1752055849997,-460.0,0.0002,2]
[370529357,1752055850006,-460.0,0.0002,2]
[370529359,1752055850015,-460.0,0.0002,2]
[370529361,1752055850025,-1232.04,0.0002,2]
[370529363,1752055850034,-460.0,0.0002,2]
[370529365,1752055850044,-460.0,0.0002,2]
[370529367,1752055850053,-872.0,0.0002,2]
[370529369,1752055850063,-460.0,0.0002,2]
[370529371,1752055850073,-460.0,0.0002,2]
[370529373,1752055850082,-1769.88,0.0002,2]
[370529375,1752055850091,-460.0,0.0002,2]
[370529377,1752055850100,-505.96,0.0002,2]
[370529379,1752055850110,-564.65581784,0.0002,2]
[370529381,1752055850125,-460.0,0.0002,2]
[370529383,1752055850134,-2716.42,0.0002,2]
[370529385,1752055850143,-460.0,0.0002,2]
[370529387,1752055850153,-354.88,0.0002,2]
[370529389,1752055850162,-460.0,0.0002,2]
[370529391,1752055850171,-460.0,0.0002,2]
[370529393,1752055850188,-152.37,0.0002,2]
[370529395,1752055850197,-460.0,0.0002,2]
[370529397,1752055850207,-269.75,0.0002,2]
[370529399,1752055850216,-460.0,0.0002,2]
[370529400,1752055850225,-460.0,0.0002,2]
[370529402,1752055850235,-460.0,0.0002,2]
[370529404,1752055850243,-275.9,0.0002,2]
[370529406,1752055850252,-663.01,0.0002,2]
[370529408,1752055850262,-460.0,0.0002,2]
[370529410,1752055850271,-460.0,0.0002,2]
[370529412,1752055850281,-460.0,0.0002,2]
[370529414,1752055850290,-943.35,0.0002,2]
[370529416,1752055850299,-460.0,0.0002,2]
[370529418,1752055850308,-460.0,0.0002,2]
[370529420,1752055850317,-460.0,0.0002,2]
[370529422,1752055850326,-460.0,0.0002,2]
[370529424,1752055850336,-506.55112485,0.00020021,2]
[370529426,1752055850345,-500.0,0.00020021,2]
[370529428,1752055850354,-1011.99044002,0.00020021,2]
[370529430,1752055850363,-1000.0,0.00020021,2]
[370529431,1752055850373,-500.0,0.00020021,2]
[370529433,1752055850382,-500.0,0.00020021,2]
[370529435,1752055850391,-1000.0,0.00020021,2]
[370529437,1752055850401,-179.894078,0.00020088,2]
[370529439,1752055850410,-179.894078,0.00020184,2]
[370529441,1752055850421,-201.808071,0.00020187,2]
[370529443,1752055850430,-460.0,0.00020273,2]
[370529445,1752055850440,-460.0,0.00020273,2]
[370529447,1752055850449,-460.0,0.00020273,2]
[370529449,1752055850459,-460.0,0.00020273,2]
[370529451,1752055850468,-460.0,0.00020273,2]
[370529453,1752055850477,-460.0,0.00020273,2]
[370529455,1752055850487,-460.0,0.00020273,2]
[370529457,1752055850495,-460.0,0.00020273,2]
[370529459,1752055850504,-360.66173995,0.00020273,2]
[370529461,1752055850514,-348.2,0.00020273,2]
[370529463,1752055850524,-460.0,0.00020273,2]
[370529465,1752055850533,-460.0,0.00020273,2]
[370529467,1752055850542,-460.0,0.00020273,2]
[370529469,1752055850551,-460.0,0.00020273,2]
[370529471,1752055850560,-460.0,0.00020273,2]
[370529473,1752055850569,-543.65,0.00020273,2]
[370529474,1752055850578,-460.0,0.00020273,2]
[370529477,1752055850587,-228.63796661,0.00020273,2]
[370529478,1752055850596,-460.0,0.00020273,2]
[370529480,1752055850605,-460.0,0.00020273,2]
[370529482,1752055850614,-460.0,0.00020273,2]
[370529484,1752055850624,-460.61,0.00020273,2]
[370529486,1752055850633,-488.74,0.00020273,2]
[370529488,1752055850643,-460.0,0.00020273,2]
[370529490,1752055850652,-460.0,0.00020273,2]
[370529492,1752055850661,-460.0,0.00020273,2]
[370529494,1752055850671,-460.0,0.00020273,2]
[370529496,1752055850681,-460.0,0.00020273,2]
[370529498,1752055850691,-460.0,0.00020273,2]
[370529500,1752055850700,-222.7,0.00020273,2]
[370529502,1752055850709,-460.0,0.00020273,2]
[370529504,1752055850719,-460.0,0.00020273,2]
[370529506,1752055850728,-460.0,0.00020273,2]
[370529508,1752055850737,-460.0,0.00020273,2]
[370529522,1752055850862,-460.0,0.00020273,2]
[370529524,1752055850873,-460.0,0.00020273,2]
[370529526,1752055850882,-460.0,0.00020273,2]
[370529528,1752055850891,-460.0,0.00020273,2]
[370529530,1752055850902,-460.0,0.00020273,2]
[370529532,1752055850911,-460.0,0.00020273,2]
[370529534,1752055850920,-460.0,0.00020273,2]
[370529536,1752055850930,-460.0,0.00020273,2]
[370529538,1752055850939,-1243.87,0.00020273,2]
[370529540,1752055850948,-460.0,0.00020273,2]
[370529542,1752055850958,-460.0,0.00020273,2]
[370529544,1752055850967,-460.0,0.00020273,2]
[370529546,1752055850976,-460.0,0.00020273,2]
[370529548,1752055850986,-194.2,0.00020273,2]
[370529550,1752055850995,-227.05,0.00020273,2]
[370529552,1752055851004,-977.13,0.00020273,2]
[370529554,1752055851014,-460.0,0.00020273,2]
[370529556,1752055851023,-460.0,0.00020273,2]
[370529558,1752055851032,-519.22,0.00020273,2]
[370529560,1752055851041,-2676.37,0.00020273,2]
[370529561,1752055851050,-1280.58,0.00020273,2]
[370529563,1752055851060,-1139.85,0.00020273,2]
[370529565,1752055851069,-460.0,0.00020273,2]
[370529567,1752055851078,-460.0,0.00020273,2]
[370529569,1752055851087,-786.89,0.00020273,2]
[370529571,1752055851098,-460.0,0.00020273,2]
[370529573,1752055851107,-460.0,0.00020273,2]
[370529575,1752055851116,-460.0,0.00020273,2]
[370529577,1752055851125,-922.26,0.00020273,2]
[370529579,1752055851135,-460.0,0.00020273,2]
[370529581,1752055851145,-460.0,0.00020273,2]
[370529583,1752055851154,-460.0,0.00020273,2]
[370529585,1752055851163,-460.0,0.00020273,2]
[370529587,1752055851173,-460.0,0.00020273,2]
[370529589,1752055851182,-460.0,0.00020273,2]
[370529591,1752055851191,-460.0,0.00020273,2]
[370529593,1752055851201,-1364.13,0.00020273,2]
[370529595,1752055851210,-460.0,0.00020273,2]
[370529597,1752055851219,-460.0,0.00020273,2]
[370529599,1752055851229,-460.0,0.00020273,2]
[370529601,1752055851238,-460.0,0.00020273,2]
[370529603,1752055851248,-1419.92,0.00020273,2]
[370529605,1752055851258,-695.48,0.00020273,2]
[370529607,1752055851268,-460.0,0.00020273,2]
[370529609,1752055851277,-583.52,0.00020273,2]
[370529611,1752055851286,-460.0,0.00020273,2]
[370529613,1752055851295,-460.0,0.00020273,2]
[370529615,1752055851304,-460.0,0.00020273,2]
[370529617,1752055851314,-460.0,0.00020273,2]
[370529619,1752055851323,-1232.04,0.00020273,2]
[370529621,1752055851333,-460.0,0.00020273,2]
[370529623,1752055851342,-460.0,0.00020273,2]
[370529625,1752055851352,-872.0,0.00020273,2]
[370529627,1752055851362,-460.0,0.00020273,2]
[370529629,1752055851371,-1769.88,0.00020273,2]
[370529630,1752055851381,-460.0,0.00020273,2]
[370529632,1752055851391,-505.96,0.00020273,2]
[370529634,1752055851400,-460.0,0.00020273,2]
[370529637,1752055851411,-460.0,0.00020273,2]
[370529638,1752055851421,-460.0,0.00020273,2]
[370529641,1752055851431,-2716.42,0.00020273,2]
[370529642,1752055851440,-460.0,0.00020273,2]
[370529644,1752055851451,-460.0,0.00020273,2]
[370529646,1752055851463,-460.0,0.00020273,2]
[370529649,1752055851473,-460.0,0.00020273,2]
[370529650,1752055851483,-460.0,0.00020273,2]
[370529652,1752055851493,-663.01,0.00020273,2]
[370529654,1752055851503,-460.0,0.00020273,2]
[370529656,1752055851516,-460.0,0.00020273,2]
[370529658,1752055851526,-943.35,0.00020273,2]
[370529660,1752055851536,-460.0,0.00020273,2]
[370529662,1752055851545,-460.0,0.00020273,2]
[370529664,1752055851555,-460.0,0.00020273,2]
[370529666,1752055851564,-460.0,0.00020273,2]
[370529668,1752055851574,-179.894078,0.0002028,2]
[370529670,1752055851584,-179.894078,0.00020375,2]
[370529672,1752055851594,-1467.43327073,0.00020448,2]
[370529674,1752055851603,-179.894078,0.00020471,2]
[370529676,1752055851612,-460.0,0.00020547,2]
[370529678,1752055851622,-279.16606981,0.00020547,2]
[370529680,1752055851631,-460.0,0.00020547,2]
[370529682,1752055851640,-460.0,0.00020547,2]
[370529684,1752055851650,-460.0,0.00020547,2]
[370529686,1752055851659,-460.0,0.00020547,2]
[370529688,1752055851668,-460.0,0.00020547,2]
[370529690,1752055851677,-159.78,0.00020547,2]
[370529692,1752055851687,-280.16985111,0.00020547,2]
[370529694,1752055851695,-460.0,0.00020547,2]
[370529696,1752055851705,-460.0,0.00020547,2]
[370529698,1752055851714,-460.0,0.00020547,2]
[370529700,1752055851723,-190.25,0.00020547,2]
[370529702,1752055851733,-460.61,0.00020547,2]
[370529704,1752055851742,-488.74,0.00020547,2]
[370529706,1752055851751,-460.0,0.00020547,2]
[370529708,1752055851764,-460.0,0.00020547,2]
[370529710,1752055851774,-460.0,0.00020547,2]
[370529712,1752055851783,-460.0,0.00020547,2]
[370529714,1752055851793,-460.0,0.00020547,2]
[370529716,1752055851802,-460.0,0.00020547,2]
[370529717,1752055851811,-460.0,0.00020547,2]
[370529719,1752055851820,-460.0,0.00020547,2]
[370529721,1752055851830,-460.0,0.00020547,2]
[370529723,1752055851839,-282.21,0.00020547,2]
[370529725,1752055851848,-460.0,0.00020547,2]
[370529727,1752055851858,-460.0,0.00020547,2]
[370529729,1752055851867,-1243.87,0.00020547,2]
[370529731,1752055851876,-460.0,0.00020547,2]
[370529733,1752055851886,-460.0,0.00020547,2]
[370529735,1752055851895,-460.0,0.00020547,2]
[370529737,1752055851904,-977.13,0.00020547,2]
[370529739,1752055851914,-460.0,0.00020547,2]
[370529741,1752055851923,-460.0,0.00020547,2]
[370529743,1752055851932,-519.22,0.00020547,2]
[370529745,1752055851941,-2676.37,0.00020547,2]
[370529747,1752055851951,-1280.58,0.00020547,2]
[370529749,1752055851961,-1139.85,0.00020547,2]
[370529751,1752055851970,-460.0,0.00020547,2]
[370529753,1752055851980,-460.0,0.00020547,2]
[370529755,1752055851989,-786.89,0.00020547,2]
[370529757,1752055851998,-460.0,0.00020547,2]
[370529759,1752055852008,-460.0,0.00020547,2]
[370529761,1752055852018,-460.0,0.00020547,2]
[370529763,1752055852027,-922.26,0.00020547,2]
[370529765,1752055852036,-460.0,0.00020547,2]
[370529766,1752055852044,-460.0,0.00020547,2]
[370529767,1752055852053,-460.0,0.00020547,2]
[370529768,1752055852063,-460.0,0.00020547,2]
[370529769,1752055852072,-460.0,0.00020547,2]
[370529770,1752055852081,-460.0,0.00020547,2]
[370529771,1752055852090,-460.0,0.00020547,2]
[370529772,1752055852099,-1364.13,0.00020547,2]
[370529773,1752055852109,-460.0,0.00020547,2]
[370529774,1752055852119,-460.0,0.00020547,2]
[370529775,1752055852127,-460.0,0.00020547,2]
[370529776,1752055852137,-460.0,0.00020547,2]
[370529777,1752055852146,-1419.92,0.00020547,2]
[370529778,1752055852155,-695.48,0.00020547,2]
[370529779,1752055852164,-460.0,0.00020547,2]
[370529780,1752055852173,-583.52,0.00020547,2]
[370529781,1752055852182,-222.95346022,0.00020547,2]
[370529782,1752055852191,-460.0,0.00020547,2]
[370529783,1752055852200,-1232.04,0.00020547,2]
[370529784,1752055852209,-460.0,0.00020547,2]
[370529785,1752055852219,-460.0,0.00020547,2]
[370529786,1752055852228,-872.0,0.00020547,2]
[370529787,1752055852238,-505.96,0.00020547,2]
[370529788,1752055852248,-527.08,0.00020547,2]
[370529789,1752055852258,-1769.88,0.00020547,2]
[370529790,1752055852267,-460.0,0.00020547,2]
[370529791,1752055852277,-460.0,0.00020547,2]
[370529792,1752055852286,-2716.42,0.00020547,2]
[370529793,1752055852296,-460.0,0.00020547,2]
[370529794,1752055852305,-460.0,0.00020547,2]
[370529795,1752055852315,-460.0,0.00020547,2]
[370529796,1752055852324,-460.0,0.00020547,2]
[370529797,1752055852334,-460.0,0.00020547,2]
[370529798,1752055852343,-663.01,0.00020547,2]
[370529799,1752055852351,-460.0,0.00020547,2]
[370529800,1752055852361,-943.35,0.00020547,2]
[370529802,1752055852370,-460.0,0.00020547,2]
[370529803,1752055852380,-460.0,0.00020547,2]
[370529805,1752055852389,-460.0,0.00020547,2]
[370529807,1752055852399,-179.894078,0.00020567,2]
[370529809,1752055852409,-1500.0,0.00020568,2]
[370529811,1752055852418,-536.94146932,0.00020568,2]
[370529813,1752055852427,-1677.24,0.000206,2]
[370529815,1752055852438,-230.53906051,0.00020654,2]
[370529817,1752055852447,-215.27775528,0.00020654,2]
[370529819,1752055852456,-837.99933892,0.00020654,2]
[370529821,1752055852466,-179.894078,0.00020662,2]
[370529823,1752055852475,-179.894078,0.00020758,2]
[370529825,1752055852485,-460.0,0.00020821,2]
[370529827,1752055852493,-460.0,0.00020821,2]
[370529829,1752055852503,-464.30745388,0.00020821,2]
[370529831,1752055852512,-460.0,0.00020821,2]
[370529833,1752055852523,-460.0,0.00020821,2]
[370529835,1752055852532,-460.0,0.00020821,2]
[370529837,1752055852541,-460.0,0.00020821,2]
[370529839,1752055852551,-460.61,0.00020821,2]
[370529841,1752055852560,-488.74,0.00020821,2]
[370529843,1752055852569,-460.0,0.00020821,2]
[370529845,1752055852578,-460.0,0.00020821,2]
[370529847,1752055852587,-460.0,0.00020821,2]
[370529849,1752055852596,-460.0,0.00020821,2]
[370529851,1752055852606,-460.0,0.00020821,2]
[370529853,1752055852615,-460.0,0.00020821,2]
[370529855,1752055852624,-460.0,0.00020821,2]
[370529857,1752055852633,-353.31,0.00020821,2]
[370529859,1752055852643,-305.58,0.00020821,2]
[370529861,1752055852652,-460.0,0.00020821,2]
[370529863,1752055852662,-254.17,0.00020821,2]
[370529865,1752055852671,-1243.87,0.00020821,2]
[370529867,1752055852680,-460.0,0.00020821,2]
[370529868,1752055852689,-460.0,0.00020821,2]
[370529870,1752055852698,-977.13,0.00020821,2]
[370529872,1752055852707,-460.0,0.00020821,2]
[370529874,1752055852716,-460.0,0.00020821,2]
[370529876,1752055852726,-519.22,0.00020821,2]
[370529878,1752055852735,-2676.37,0.00020821,2]
[370529880,1752055852744,-1280.58,0.00020821,2]
[370529882,1752055852754,-1139.85,0.00020821,2]
[370529884,1752055852765,-460.0,0.00020821,2]
[370529886,1752055852775,-460.0,0.00020821,2]
[370529888,1752055852785,-786.89,0.00020821,2]
[370529890,1752055852794,-460.0,0.00020821,2]
[370529892,1752055852803,-460.0,0.00020821,2]
[370529894,1752055852814,-460.0,0.00020821,2]
[370529896,1752055852823,-922.26,0.00020821,2]
[370529898,1752055852833,-460.0,0.00020821,2]
[370529900,1752055852842,-460.0,0.00020821,2]
[370529902,1752055852851,-460.0,0.00020821,2]
[370529904,1752055852860,-460.0,0.00020821,2]
[370529906,1752055852870,-460.0,0.00020821,2]
[370529908,1752055852879,-460.0,0.00020821,2]
[370529910,1752055852888,-1364.13,0.00020821,2]
[370529912,1752055852897,-460.0,0.00020821,2]
[370529914,1752055852906,-460.0,0.00020821,2]
[370529916,1752055852916,-460.0,0.00020821,2]
[370529918,1752055852926,-460.0,0.00020821,2]
[370529920,1752055852935,-1419.92,0.00020821,2]
[370529922,1752055852945,-695.48,0.00020821,2]
[370529924,1752055852956,-460.0,0.00020821,2]
[370529926,1752055852966,-583.52,0.00020821,2]
[370529928,1752055852977,-460.0,0.00020821,2]
[370529930,1752055852987,-1232.04,0.00020821,2]
[370529932,1752055852997,-460.0,0.00020821,2]
[370529934,1752055853006,-872.0,0.00020821,2]
[370529936,1752055853015,-505.96,0.00020821,2]
[370529938,1752055853028,-1769.88,0.00020821,2]
[370529940,1752055853037,-460.0,0.00020821,2]
[370529942,1752055853046,-2716.42,0.00020821,2]
[370529943,1752055853056,-460.0,0.00020821,2]
[370529945,1752055853066,-460.0,0.00020821,2]
[370529947,1752055853075,-460.0,0.00020821,2]
[370529949,1752055853085,-460.0,0.00020821,2]
[370529951,1752055853095,-460.0,0.00020821,2]
[370529953,1752055853104,-663.01,0.00020821,2]
[370529955,1752055853113,-460.0,0.00020821,2]
[370529957,1752055853123,-943.35,0.00020821,2]
[370529959,1752055853132,-460.0,0.00020821,2]
[370529961,1752055853141,-460.0,0.00020821,2]
[370529963,1752055853150,-179.894078,0.00020854,2]
[370529965,1752055853159,-364.09737093,0.00020868,2]
[370529967,1752055853168,-503.144,0.00020881,2]
[370529969,1752055853178,-420.0,0.00020893,2]
[370529971,1752055853187,-652.46571529,0.000209,4]
[370529973,1752055853196,-179.894078,0.00020949,2]
[370529975,1752055853206,-3000.0,0.00021,2]
[370529977,1752055853215,-3000.0,0.0002101,2]
[370529979,1752055853224,-3000.0,0.0002102,2]
[370529981,1752055853233,-3000.0,0.0002103,2]
[370529983,1752055853241,-3000.0,0.0002104,2]
[370529985,1752055853251,-179.894078,0.00021045,2]
[370529987,1752055853260,-129465.80121059,0.00021049,4]
[370530016,1752055853534,-455.18249544,0.00019726,2]
[370530018,1752055853547,-4.81750456,0.00019726,2]
[370530020,1752055853556,-3303.1600718,0.00021049,4]
[370530036,1752055853708,-460.0,0.0002,2]
[370530039,1752055853719,-460.0,0.0002,2]
[370530040,1752055853728,-460.0,0.00020273,2]
[370530042,1752055853737,-546.10924468,0.00020273,2]
[370530044,1752055853747,-460.0,0.00020547,2]
[370530046,1752055853758,-460.0,0.00020821,2]
[370530048,1752055853767,-12005.57572185,0.00021049,4]
[370530053,1752055853808,-2000.19969,0.00021049,4]
[370530081,1752055854066,-4298.7787942,0.00021049,4]
[370530325,1752055919761,181.627263,0.00013699,2]
[370530326,1752056005268,274.0,0.00025444,120]
[370530331,1752056425565,1000.0,0.00027,120]
[370530339,1752056922114,4694.49214134,0.00017,2]
[370530340,1752056922640,3827.17891595,0.00017,2]
[370530345,1752056962717,180.791108,0.00013699,2]
[370530346,1752056973114,190.40574712,0.00016438,3]
[370530347,1752057026238,500.0,0.000183,2]
[370530351,1752057032734,-595.91,0.00019168,3]
[370530352,1752057032744,-595.91,0.00019168,3]
[370530353,1752057032754,-160.0,0.00019175,2]
[370530354,1752057032764,-300.0,0.00019176,2]
[370530355,1752057032773,-19283.00350484,0.00019177,2]
[370530356,1752057032783,-500.0,0.00019177,2]
[370530358,1752057032792,-474.34948991,0.00019177,2]
[370530359,1752057032802,-500.0,0.00019177,2]
[370530361,1752057032811,-335.33939311,0.00019177,2]
[370530364,1752057032841,-164.66060689,0.00019177,2]
[370530365,1752057032850,-502.42157191,0.00019177,2]
[370530366,1752057032860,-500.0,0.00019177,2]
[370530367,1752057032869,-427.39248719,0.00019177,2]
[370530368,1752057032878,-500.0,0.00019177,2]
[370530369,1752057032888,-500.0,0.00019177,2]
[370530370,1752057032897,-500.0,0.00019177,2]
[370530371,1752057032907,-500.0,0.00019177,2]
[370530372,1752057032916,-500.20225749,0.00019177,2]
[370530373,1752057032926,-500.0,0.00019177,2]
[370530374,1752057032935,-500.0,0.00019177,2]
[370530376,1752057032947,-500.0,0.00019177,2]
[370530378,1752057032956,-500.0,0.00019177,2]
[370530379,1752057032965,-645.24987142,0.00019177,2]
[370530381,1752057032975,-384.63779715,0.00019177,2]
[370530383,1752057032985,-500.0,0.00019177,2]
[370530385,1752057032994,-500.0,0.00019177,2]
[370530386,1752057033003,-500.0,0.00019177,2]
[370530388,1752057033013,-311.80408371,0.00019177,2]
[370530390,1752057033026,-500.0,0.00019177,2]
[370530392,1752057033035,-500.0,0.00019177,2]
[370530394,1752057033045,-500.0,0.00019177,2]
[370530396,1752057033054,-500.0,0.00019177,2]
[370530397,1752057033065,-500.0,0.00019177,2]
[370530399,1752057033075,-500.0,0.00019177,2]
[370530400,1752057033084,-500.0,0.00019177,2]
[370530402,1752057033094,-500.0,0.00019177,2]
[370530404,1752057033104,-500.0,0.00019177,2]
[370530406,1752057033113,-163.84969725,0.00019177,2]
[370530407,1752057033122,-500.0,0.00019177,2]
[370530408,1752057033132,-223.67951651,0.00019177,2]
[370530409,1752057033141,-185.21015525,0.00019177,2]
[370530410,1752057033151,-500.0,0.00019177,2]
[370530411,1752057033160,-450.03084832,0.00019177,2]
[370530412,1752057033169,-176.61383669,0.00019177,2]
[370530413,1752057033179,-460.0,0.00019178,2]
[370530414,1752057033188,-462.33346727,0.00019178,2]
[370530415,1752057033198,-460.0,0.00019178,2]
[370530416,1752057033210,-460.0,0.00019178,2]
[370530417,1752057033219,-460.0,0.00019178,2]
[370530418,1752057033229,-460.0,0.00019178,2]
[370530419,1752057033238,-460.0,0.00019178,2]
[370530420,1752057033248,-460.0,0.00019178,2]
[370530421,1752057033257,-460.0,0.00019178,2]
[370530422,1752057033267,-460.0,0.00019178,2]
[370530423,1752057033276,-460.0,0.00019178,2]
[370530424,1752057033285,-460.0,0.00019178,2]
[370530425,1752057033294,-460.0,0.00019178,2]
[370530426,1752057033303,-460.0,0.00019178,2]
[370530427,1752057033313,-460.0,0.00019178,2]
[370530428,1752057033323,-460.0,0.00019178,2]
[370530429,1752057033331,-460.0,0.00019178,2]
[370530430,1752057033341,-460.0,0.00019178,2]
[370530431,1752057033351,-460.0,0.00019178,2]
[370530432,1752057033361,-460.0,0.00019178,2]
[370530433,1752057033370,-177.67129004,0.00019178,2]
[370530434,1752057033379,-460.0,0.00019178,2]
[370530435,1752057033389,-460.0,0.00019178,2]